[Event "Masterklassen 2025"]
[Site "Uppsala, Sweden"]
[Date "2025.07.02"]
[Round "5.4"]
[White "Mashhadi, Peyman"]
[Black "Odell-Johansson, Leo"]
[Result "1-0"]
[TimeControl "90 min for 40 move + 30 min with an increment of 30 sec starting move 1"]
[WhiteFideId "1768581"]
[BlackFideId "1722727"]
[WhiteElo "2132"]
[BlackElo "1991"]

1. d4 {[%clk 01:30:52]} {[%emt 00:00:06]} d5 {[%clk 01:30:49]} {[%emt
00:00:13]} 2. Nf3 {[%clk 01:30:55]} {[%emt 00:00:25]} Nf6 {[%clk 01:31:13]}
{[%emt 00:00:07]} 3. c4 {[%clk 01:30:41]} {[%emt 00:00:44]} e6 {[%clk
01:31:41]} {[%emt 00:00:02]} 4. g3 {[%clk 01:30:51]} {[%emt 00:00:20]} Be7
{[%clk 01:31:57]} {[%emt 00:00:15]} 5. Bg2 {[%clk 01:31:13]} {[%emt 00:00:06]}
O-O {[%clk 01:32:22]} {[%emt 00:00:06]} 6. O-O {[%clk 01:31:18]} {[%emt
00:00:24]} dxc4 {[%clk 01:32:49]} {[%emt 00:00:05]} 7. Ne5 {[%clk 01:30:05]}
{[%emt 00:01:42]} Nc6 {[%clk 01:30:52]} {[%emt 00:02:28]} 8. Bxc6 {[%clk
01:25:39]} {[%emt 00:04:55]} bxc6 {[%clk 01:31:19]} {[%emt 00:00:04]} 9. Nxc6
{[%clk 01:25:50]} {[%emt 00:00:18]} Qe8 {[%clk 01:31:45]} {[%emt 00:00:03]} 10.
Nxe7+ {[%clk 01:26:05]} {[%emt 00:00:16]} Qxe7 {[%clk 01:32:13]} {[%emt
00:00:03]} 11. Qa4 {[%clk 01:19:54]} {[%emt 00:06:41]} e5 {[%clk 01:32:40]}
{[%emt 00:00:03]} 12. dxe5 {[%clk 01:18:01]} {[%emt 00:02:22]} Qxe5 {[%clk
01:32:35]} {[%emt 00:00:35]} 13. Nc3 {[%clk 01:14:36]} {[%emt 00:03:56]} Be6
{[%clk 01:11:00]} {[%emt 00:22:05]} 14. Bf4 {[%clk 01:02:43]} {[%emt 00:12:22]}
Qc5 {[%clk 00:39:08]} {[%emt 00:32:22]} 15. Rad1 {[%clk 00:58:45]} {[%emt
00:04:28]} a6 {[%clk 00:35:30]} {[%emt 00:04:08]} 16. Rd2 {[%clk 00:52:17]}
{[%emt 00:06:57]} Rfe8 {[%clk 00:31:19]} {[%emt 00:04:42]} 17. Rfd1 {[%clk
00:46:56]} {[%emt 00:05:50]} h6 {[%clk 00:29:18]} {[%emt 00:02:32]} 18. Rd4
{[%clk 00:38:01]} {[%emt 00:09:24]} Qb6 {[%clk 00:24:43]} {[%emt 00:05:04]} 19.
R1d2 {[%clk 00:36:03]} {[%emt 00:02:29]} Qb7 {[%clk 00:19:32]} {[%emt
00:05:42]} 20. Qa5 {[%clk 00:33:09]} {[%emt 00:03:24]} Rec8 {[%clk 00:13:32]}
{[%emt 00:06:30]} 21. Qe5 {[%clk 00:27:18]} {[%emt 00:06:20]} c5 {[%clk
00:13:27]} {[%emt 00:00:36]} 22. Rd6 {[%clk 00:25:55]} {[%emt 00:01:53]} Ne8
{[%clk 00:12:49]} {[%emt 00:01:07]} 23. Rxe6 {[%clk 00:18:17]} {[%emt
00:08:09]} fxe6 {[%clk 00:13:17]} {[%emt 00:00:02]} 24. Qxe6+ {[%clk 00:18:03]}
{[%emt 00:00:44]} Qf7 {[%clk 00:13:42]} {[%emt 00:00:05]} 25. Qb6 {[%clk
00:17:43]} {[%emt 00:00:50]} Nf6 {[%clk 00:13:18]} {[%emt 00:00:55]} 26. e4
{[%clk 00:17:20]} {[%emt 00:00:53]} Qe8 {[%clk 00:08:17]} {[%emt 00:05:29]} 27.
Rd6 {[%clk 00:11:59]} {[%emt 00:05:52]} Rcb8 {[%clk 00:04:39]} {[%emt
00:04:08]} 28. Qxc5 {[%clk 00:11:58]} {[%emt 00:00:32]} Rxb2 {[%clk 00:04:37]}
{[%emt 00:00:32]} 29. e5 {[%clk 00:10:16]} {[%emt 00:02:11]} Nh5 {[%clk
00:03:17]} {[%emt 00:01:50]} 30. Qd5+ {[%clk 00:10:12]} {[%emt 00:00:34]} Kh8
{[%clk 00:03:34]} {[%emt 00:00:13]} 31. Be3 {[%clk 00:09:04]} {[%emt 00:01:37]}
g5 {[%clk 00:02:27]} {[%emt 00:01:37]} 32. Rxh6+ {[%clk 00:08:57]} {[%emt
00:00:38]} Kg7 {[%clk 00:02:52]} {[%emt 00:00:06]} 33. Rd6 {[%clk 00:08:57]}
{[%emt 00:00:29]} g4 {[%clk 00:02:10]} {[%emt 00:01:12]} 34. Rd7+ {[%clk
00:09:06]} {[%emt 00:00:21]} Kh8 {[%clk 00:02:01]} {[%emt 00:00:39]} 35. e6
{[%clk 00:09:16]} {[%emt 00:00:20]} Qg6 {[%clk 00:01:50]} {[%emt 00:00:41]} 36.
Qxa8+ {[%clk 00:09:33]} {[%emt 00:00:13]} 1-0

[Event "Masterklassen 2025"]
[Site "Uppsala, Sweden"]
[Date "2025.07.02"]
[Round "5.5"]
[White "Granath, Jonas"]
[Black "Walinder, Lars"]
[Result "1/2-1/2"]
[TimeControl "90 min for 40 move + 30 min with an increment of 30 sec starting move 1"]
[BlackTitle "FM"]
[WhiteFideId "1761013"]
[BlackFideId "1707329"]
[WhiteElo "2008"]
[BlackElo "2181"]

1. e4 {[%clk 01:28:25]} {[%emt 00:02:34]} c5 {[%clk 01:30:45]} {[%emt
00:00:15]} 2. c3 {[%clk 01:28:47]} {[%emt 00:00:08]} Nf6 {[%clk 01:30:57]}
{[%emt 00:00:17]} 3. e5 {[%clk 01:29:12]} {[%emt 00:00:06]} Nd5 {[%clk
01:31:08]} {[%emt 00:00:18]} 4. d4 {[%clk 01:29:36]} {[%emt 00:00:07]} cxd4
{[%clk 01:31:21]} {[%emt 00:00:18]} 5. cxd4 {[%clk 01:29:58]} {[%emt 00:00:07]}
d6 {[%clk 01:31:08]} {[%emt 00:00:43]} 6. Nf3 {[%clk 01:30:22]} {[%emt
00:00:06]} Nc6 {[%clk 01:31:16]} {[%emt 00:00:22]} 7. Bc4 {[%clk 01:30:36]}
{[%emt 00:00:17]} dxe5 {[%clk 01:31:08]} {[%emt 00:00:38]} 8. dxe5 {[%clk
01:30:55]} {[%emt 00:00:11]} Ndb4 {[%clk 01:31:00]} {[%emt 00:00:37]} 9. O-O
{[%clk 01:28:46]} {[%emt 00:02:39]} Qxd1 {[%clk 01:22:41]} {[%emt 00:08:49]} 10.
Rxd1 {[%clk 01:28:47]} {[%emt 00:00:29]} Bg4 {[%clk 01:19:08]} {[%emt
00:04:03]} 11. Nc3 {[%clk 01:23:14]} {[%emt 00:06:03]} e6 {[%clk 01:15:16]}
{[%emt 00:04:23]} 12. Bf4 {[%clk 01:04:04]} {[%emt 00:19:39]} Be7 {[%clk
00:16:05]} {[%emt 00:59:41]} 13. Rac1 {[%clk 01:03:46]} {[%emt 00:00:48]} Bxf3
{[%clk 00:11:41]} {[%emt 00:04:54]} 14. gxf3 {[%clk 01:04:02]} {[%emt
00:00:14]} g5 {[%clk 00:09:46]} {[%emt 00:02:25]} 15. Bg3 {[%clk 00:59:46]}
{[%emt 00:04:45]} h5 {[%clk 00:09:43]} {[%emt 00:00:33]} 16. h4 {[%clk
00:46:59]} {[%emt 00:13:18]} gxh4 {[%clk 00:09:54]} {[%emt 00:00:18]} 17. Bf4
{[%clk 00:47:04]} {[%emt 00:00:26]} Rd8 {[%clk 00:08:41]} {[%emt 00:01:43]} 18.
a3 {[%clk 00:38:00]} {[%emt 00:09:35]} Na6 {[%clk 00:08:46]} {[%emt 00:00:24]}
19. Ne4 {[%clk 00:36:38]} {[%emt 00:01:52]} Nd4 {[%clk 00:04:48]} {[%emt
00:04:28]} 20. Nd6+ {[%clk 00:31:23]} {[%emt 00:05:45]} Bxd6 {[%clk 00:05:10]}
{[%emt 00:00:08]} 21. exd6 {[%clk 00:27:15]} {[%emt 00:04:39]} e5 {[%clk
00:04:49]} {[%emt 00:00:50]} 22. Bxe5 {[%clk 00:13:21]} {[%emt 00:14:25]} Nxf3+
{[%clk 00:05:11]} {[%emt 00:00:08]} 23. Kg2 {[%clk 00:12:47]} {[%emt 00:01:04]}
Nxe5 {[%clk 00:05:34]} {[%emt 00:00:06]} 24. Re1 {[%clk 00:13:08]} {[%emt
00:00:09]} Rxd6 {[%clk 00:01:23]} {[%emt 00:04:42]} 25. Rxe5+ {[%clk 00:13:07]}
{[%emt 00:00:30]} Kd8 {[%clk 00:01:35]} {[%emt 00:00:17]} 26. Bxf7 {[%clk
00:12:00]} {[%emt 00:01:38]} Nc7 {[%clk 00:02:01]} {[%emt 00:00:04]} 27. Rcc5
{[%clk 00:08:28]} {[%emt 00:04:02]} Rf8 {[%clk 00:02:08]} {[%emt 00:00:22]} 28.
Rf5 {[%clk 00:06:18]} {[%emt 00:02:40]} b6 {[%clk 00:02:27]} {[%emt 00:00:13]}
29. Bxh5 {[%clk 00:04:56]} {[%emt 00:01:51]} Rh8 {[%clk 00:02:16]} {[%emt
00:00:40]} 30. Rce5 {[%clk 00:05:01]} {[%emt 00:00:26]} Rdh6 {[%clk 00:01:51]}
{[%emt 00:00:55]} 31. Bf7 {[%clk 00:02:42]} {[%emt 00:02:49]} Rf8 {[%clk
00:01:21]} {[%emt 00:01:01]} 32. Bc4 {[%clk 00:02:13]} {[%emt 00:00:58]} Rxf5
{[%clk 00:01:10]} {[%emt 00:00:41]} 33. Rxf5 {[%clk 00:02:42]} {[%emt
00:00:02]} Kd7 {[%clk 00:01:23]} {[%emt 00:00:16]} 34. Kh3 {[%clk 00:02:32]}
{[%emt 00:00:40]} Kd6 {[%clk 00:00:57]} {[%emt 00:00:56]} 35. Rf4 {[%clk
00:02:36]} {[%emt 00:00:27]} b5 {[%clk 00:00:59]} {[%emt 00:00:28]} 36. Ba2
{[%clk 00:01:49]} {[%emt 00:01:16]} Ne6 {[%clk 00:00:52]} {[%emt 00:00:37]} 37.
Bxe6 {[%clk 00:01:59]} {[%emt 00:00:20]} Rxe6 {[%clk 00:01:03]} {[%emt
00:00:18]} 38. Rb4 {[%clk 00:01:12]} {[%emt 00:01:17]} Kc5 {[%clk 00:01:15]}
{[%emt 00:00:19]} 39. Rxh4 {[%clk 00:00:45]} {[%emt 00:00:57]} Re2 {[%clk
00:01:15]} {[%emt 00:00:30]} 40. b4+ {[%clk 00:01:04]} {[%emt 00:00:12]} Kd5
{[%clk 00:00:44]} {[%emt 00:00:59]} 41. Rh5+ {[%clk 00:25:00]} {[%emt
00:06:35]} Kc6 {[%clk 00:16:39]} {[%emt 00:14:35]} 42. Kg3 {[%clk 00:24:48]}
{[%emt 00:00:43]} Rc2 {[%clk 00:16:02]} {[%emt 00:01:05]} 43. Re5 {[%clk
00:24:26]} {[%emt 00:00:53]} Kd6 {[%clk 00:15:04]} {[%emt 00:01:29]} 44. Re3
{[%clk 00:21:51]} {[%emt 00:03:04]} Kd5 {[%clk 00:15:31]} {[%emt 00:00:04]} 45.
f4 {[%clk 00:21:38]} {[%emt 00:00:42]} Kd4 {[%clk 00:14:50]} {[%emt 00:01:11]}
46. Rf3 {[%clk 00:21:50]} {[%emt 00:00:18]} Ke4 {[%clk 00:13:51]} {[%emt
00:01:29]} 47. f5 {[%clk 00:20:51]} {[%emt 00:01:29]} Rc1 {[%clk 00:07:53]}
{[%emt 00:06:28]} 48. f6 {[%clk 00:20:06]} {[%emt 00:01:15]} Rg1+ {[%clk
00:08:12]} {[%emt 00:00:10]} 49. Kf2 {[%clk 00:20:28]} {[%emt 00:00:08]} Rg8
{[%clk 00:08:23]} {[%emt 00:00:19]} 50. f7 {[%clk 00:20:28]} {[%emt 00:00:31]}
Rf8 {[%clk 00:08:50]} {[%emt 00:00:03]} 51. Kg3 {[%clk 00:19:37]} {[%emt
00:01:21]} Ke5 {[%clk 00:07:46]} {[%emt 00:01:33]} 52. Kg4 {[%clk 00:19:59]}
{[%emt 00:00:09]} Ke6 {[%clk 00:08:11]} {[%emt 00:00:04]} 53. Kg5 {[%clk
00:20:19]} {[%emt 00:00:12]} Rxf7 {[%clk 00:08:27]} {[%emt 00:00:14]} 54. Rxf7
{[%clk 00:20:43]} {[%emt 00:00:05]} Kxf7 {[%clk 00:08:54]} {[%emt 00:00:03]} 55.
Kf5 {[%clk 00:21:09]} {[%emt 00:00:05]} Ke7 {[%clk 00:09:16]} {[%emt 00:00:07]}
56. Ke5 {[%clk 00:20:49]} {[%emt 00:00:51]} Kd7 {[%clk 00:09:42]} {[%emt
00:00:04]} 57. Kd5 {[%clk 00:21:04]} {[%emt 00:00:14]} Kc7 {[%clk 00:10:05]}
{[%emt 00:00:07]} 58. Kc5 {[%clk 00:18:09]} {[%emt 00:03:26]} a6 {[%clk
00:10:29]} {[%emt 00:00:06]} 59. Kd5 {[%clk 00:17:53]} {[%emt 00:00:45]} Kd7
{[%clk 00:10:53]} {[%emt 00:00:07]} 60. Kc5 {[%clk 00:18:14]} {[%emt 00:00:09]}
Kc7 {[%clk 00:11:21]} {[%emt 00:00:01]} 1/2-1/2

[Event "Masterklassen 2025"]
[Site "Uppsala, Sweden"]
[Date "2025.07.02"]
[Round "5.6"]
[White "Dingertz, Erik"]
[Black "Jonsson, Jacob"]
[Result "1/2-1/2"]
[TimeControl "90 min for 40 move + 30 min with an increment of 30 sec starting move 1"]
[WhiteFideId "1741578"]
[BlackFideId "1726315"]
[WhiteElo "2121"]
[BlackElo "2112"]

1. d4 {[%clk 01:30:54]} {[%emt 00:00:03]} Nf6 {[%clk 01:30:56]} {[%emt
00:00:07]} 2. c4 {[%clk 01:31:17]} {[%emt 00:00:06]} e6 {[%clk 01:31:23]}
{[%emt 00:00:05]} 3. g3 {[%clk 01:31:42]} {[%emt 00:00:04]} d5 {[%clk
01:31:49]} {[%emt 00:00:05]} 4. Bg2 {[%clk 01:32:05]} {[%emt 00:00:06]} h6
{[%clk 01:32:08]} {[%emt 00:00:11]} 5. Nf3 {[%clk 01:32:27]} {[%emt 00:00:07]}
Bd6 {[%clk 01:32:34]} {[%emt 00:00:05]} 6. O-O {[%clk 01:32:38]} {[%emt
00:00:18]} O-O {[%clk 01:33:00]} {[%emt 00:00:05]} 7. Qc2 {[%clk 01:32:32]}
{[%emt 00:00:36]} b6 {[%clk 01:31:49]} {[%emt 00:01:41]} 8. Nc3 {[%clk
01:28:09]} {[%emt 00:04:53]} Bb7 {[%clk 01:30:33]} {[%emt 00:01:47]} 9. cxd5
{[%clk 01:27:53]} {[%emt 00:00:46]} exd5 {[%clk 01:28:15]} {[%emt 00:02:47]} 10.
Nb5 {[%clk 01:26:52]} {[%emt 00:01:31]} Nc6 {[%clk 01:27:49]} {[%emt 00:00:56]}
11. Nxd6 {[%clk 01:26:08]} {[%emt 00:01:14]} cxd6 {[%clk 01:28:15]} {[%emt
00:00:04]} 12. Bd2 {[%clk 01:19:20]} {[%emt 00:07:17]} Qd7 {[%clk 01:28:02]}
{[%emt 00:00:43]} 13. Rfc1 {[%clk 01:17:54]} {[%emt 00:01:56]} Rfe8 {[%clk
01:23:16]} {[%emt 00:05:17]} 14. e3 {[%clk 01:16:49]} {[%emt 00:01:35]} Ne4
{[%clk 01:19:25]} {[%emt 00:04:21]} 15. Be1 {[%clk 01:16:34]} {[%emt 00:00:44]}
Re7 {[%clk 01:14:04]} {[%emt 00:05:52]} 16. b4 {[%clk 01:11:09]} {[%emt
00:05:56]} Nd8 {[%clk 01:09:13]} {[%emt 00:05:20]} 17. a4 {[%clk 01:07:13]}
{[%emt 00:04:26]} a6 {[%clk 01:06:52]} {[%emt 00:02:51]} 18. b5 {[%clk
01:03:16]} {[%emt 00:04:27]} axb5 {[%clk 00:56:25]} {[%emt 00:10:57]} 19. axb5
{[%clk 01:03:41]} {[%emt 00:00:06]} Rxa1 {[%clk 00:56:47]} {[%emt 00:00:07]} 20.
Rxa1 {[%clk 01:04:07]} {[%emt 00:00:04]} Qxb5 {[%clk 00:57:07]} {[%emt
00:00:10]} 21. Rb1 {[%clk 01:02:39]} {[%emt 00:01:58]} Qc6 {[%clk 00:56:42]}
{[%emt 00:00:54]} 22. Qxc6 {[%clk 01:00:47]} {[%emt 00:02:22]} Bxc6 {[%clk
00:57:08]} {[%emt 00:00:05]} 23. Rxb6 {[%clk 01:00:58]} {[%emt 00:00:20]} Rb7
{[%clk 00:57:31]} {[%emt 00:00:06]} 24. Rxb7 {[%clk 01:00:11]} {[%emt
00:01:17]} Nxb7 {[%clk 00:57:40]} {[%emt 00:00:20]} 25. Bb4 {[%clk 00:55:29]}
{[%emt 00:05:11]} Kf8 {[%clk 00:55:45]} {[%emt 00:02:26]} 26. Bf1 {[%clk
00:50:46]} {[%emt 00:05:13]} Ke7 {[%clk 00:54:21]} {[%emt 00:01:54]} 27. Ne5
{[%clk 00:49:46]} {[%emt 00:01:30]} Nd8 {[%clk 00:52:25]} {[%emt 00:02:27]} 28.
f3 {[%clk 00:49:22]} {[%emt 00:00:53]} Nf6 {[%clk 00:42:26]} {[%emt 00:10:29]}
29. Ba6 {[%clk 00:37:26]} {[%emt 00:12:27]} Ba4 {[%clk 00:39:35]} {[%emt
00:03:22]} 30. Nd3 {[%clk 00:32:08]} {[%emt 00:05:47]} Nc6 {[%clk 00:39:14]}
{[%emt 00:00:49]} 31. Ba3 {[%clk 00:31:59]} {[%emt 00:00:40]} Nb8 {[%clk
00:39:38]} {[%emt 00:00:06]} 32. Bc8 {[%clk 00:28:53]} {[%emt 00:03:36]} Bd7
{[%clk 00:40:03]} {[%emt 00:00:06]} 33. Bxd7 {[%clk 00:28:51]} {[%emt
00:00:33]} Kxd7 {[%clk 00:40:27]} {[%emt 00:00:05]} 34. g4 {[%clk 00:27:50]}
{[%emt 00:01:31]} Nc6 {[%clk 00:38:45]} {[%emt 00:02:12]} 35. Kf2 {[%clk
00:27:36]} {[%emt 00:00:43]} Ne7 {[%clk 00:34:48]} {[%emt 00:04:28]} 36. h4
{[%clk 00:23:02]} {[%emt 00:05:03]} h5 {[%clk 00:33:32]} {[%emt 00:01:47]} 37.
g5 {[%clk 00:18:38]} {[%emt 00:04:53]} Ne8 {[%clk 00:33:35]} {[%emt 00:00:28]}
38. e4 {[%clk 00:19:02]} {[%emt 00:00:06]} Ng6 {[%clk 00:30:44]} {[%emt
00:03:21]} 39. Kg3 {[%clk 00:19:21]} {[%emt 00:00:10]} Nc7 {[%clk 00:29:36]}
{[%emt 00:01:38]} 40. Nf4 {[%clk 00:17:49]} {[%emt 00:02:03]} Nxf4 {[%clk
00:28:14]} {[%emt 00:01:52]} 41. Kxf4 {[%clk 00:18:13]} {[%emt 00:00:05]} g6
{[%clk 00:28:15]} {[%emt 00:00:29]} 42. Ke3 {[%clk 00:14:55]} {[%emt 00:03:49]}
1/2-1/2

[Event "Masterklassen 2025"]
[Site "Uppsala, Sweden"]
[Date "2025.07.02"]
[Round "5.7"]
[White "Sundin, Emanuel"]
[Black "Johnson, Daniel"]
[Result "0-1"]
[TimeControl "90 min for 40 move + 30 min with an increment of 30 sec starting move 1"]
[WhiteFideId "1719173"]
[BlackFideId "1721283"]
[WhiteElo "2117"]
[BlackElo "2175"]

1. e4 {[%emt 00:00:12]} e5 {[%clk 01:23:15]} {[%emt 00:07:33]} 2. Nf3 {[%clk
01:31:09]} {[%emt 00:00:21]} Nc6 {[%clk 01:23:34]} {[%emt 00:00:11]} 3. d4
{[%clk 01:31:13]} {[%emt 00:00:25]} exd4 {[%clk 01:23:57]} {[%emt 00:00:08]} 4.
Bc4 {[%clk 01:31:36]} {[%emt 00:00:06]} Nf6 {[%clk 01:23:37]} {[%emt 00:00:50]}
5. e5 {[%clk 01:31:27]} {[%emt 00:00:39]} d5 {[%clk 01:23:52]} {[%emt
00:00:15]} 6. Bb5 {[%clk 01:31:45]} {[%emt 00:00:13]} Ne4 {[%clk 01:24:01]}
{[%emt 00:00:20]} 7. Nxd4 {[%clk 01:31:51]} {[%emt 00:00:24]} Bc5 {[%clk
01:23:55]} {[%emt 00:00:36]} 8. Be3 {[%clk 01:31:53]} {[%emt 00:00:27]} O-O
{[%clk 01:23:37]} {[%emt 00:00:49]} 9. Nxc6 {[%clk 01:31:42]} {[%emt 00:00:42]}
bxc6 {[%clk 01:23:59]} {[%emt 00:00:08]} 10. Bxc5 {[%clk 01:32:03]} {[%emt
00:00:08]} Nxc5 {[%clk 01:24:22]} {[%emt 00:00:07]} 11. Bxc6 {[%clk 01:32:09]}
{[%emt 00:00:24]} Rb8 {[%clk 01:24:42]} {[%emt 00:00:10]} 12. Qxd5 {[%clk
01:32:02]} {[%emt 00:00:37]} Qe7 {[%clk 01:25:05]} {[%emt 00:00:07]} 13. O-O
{[%clk 01:32:21]} {[%emt 00:00:11]} Ba6 {[%clk 01:25:22]} {[%emt 00:00:12]} 14.
Rc1 {[%clk 01:31:31]} {[%emt 00:01:21]} Rxb2 {[%clk 01:18:13]} {[%emt
00:07:39]} 15. Nc3 {[%clk 01:30:47]} {[%emt 00:01:14]} Rd8 {[%clk 01:13:24]}
{[%emt 00:05:19]} 16. Qf3 {[%clk 01:29:40]} {[%emt 00:01:36]} Ne6 {[%clk
01:10:24]} {[%emt 00:03:31]} 17. Nd5 {[%clk 01:10:10]} {[%emt 00:20:01]} Qc5
{[%clk 01:09:04]} {[%emt 00:01:49]} 18. c3 {[%clk 01:00:39]} {[%emt 00:10:01]}
Kf8 {[%clk 00:56:19]} {[%emt 00:13:15]} 19. Nb4 {[%clk 00:41:44]} {[%emt
00:19:25]} Bc4 {[%clk 00:35:18]} {[%emt 00:21:31]} 20. Rc2 {[%clk 00:27:11]}
{[%emt 00:15:04]} Rxc2 {[%clk 00:17:36]} {[%emt 00:18:12]} 21. Nxc2 {[%clk
00:27:31]} {[%emt 00:00:09]} Rd3 {[%clk 00:17:59]} {[%emt 00:00:06]} 22. Ne3
{[%clk 00:24:44]} {[%emt 00:03:17]} Qxe5 {[%clk 00:12:12]} {[%emt 00:06:18]} 23.
Qe4 {[%clk 00:05:43]} {[%emt 00:19:31]} Qxe4 {[%clk 00:10:54]} {[%emt
00:01:48]} 24. Bxe4 {[%clk 00:06:11]} {[%emt 00:00:01]} Rxc3 {[%clk 00:11:01]}
{[%emt 00:00:22]} 25. Nxc4 {[%clk 00:05:04]} {[%emt 00:01:39]} Rxc4 {[%clk
00:11:29]} {[%emt 00:00:02]} 26. Bd5 {[%clk 00:02:14]} {[%emt 00:03:21]} Rd4
{[%clk 00:10:45]} {[%emt 00:01:13]} 27. Bf3 {[%clk 00:00:46]} {[%emt 00:01:58]}
Ke7 {[%clk 00:09:29]} {[%emt 00:01:46]} 28. Kf1 {[%clk 00:00:59]} {[%emt
00:00:18]} Rd2 {[%clk 00:08:43]} {[%emt 00:01:15]} 29. g3 {[%clk 00:00:34]}
{[%emt 00:00:56]} a5 {[%clk 00:05:52]} {[%emt 00:03:21]} 30. h4 {[%clk
00:00:32]} {[%emt 00:00:30]} a4 {[%clk 00:05:57]} {[%emt 00:00:25]} 31. a3
{[%clk 00:00:52]} {[%emt 00:00:12]} h6 {[%clk 00:05:37]} {[%emt 00:00:50]} 32.
Bc6 {[%clk 00:00:36]} {[%emt 00:00:45]} Nc5 {[%clk 00:05:57]} {[%emt 00:00:11]}
33. Rc1 {[%clk 00:00:42]} {[%emt 00:00:24]} Kd6 {[%clk 00:04:34]} {[%emt
00:01:52]} 34. Bb5 {[%clk 00:00:36]} {[%emt 00:00:36]} Rb2 {[%clk 00:03:02]}
{[%emt 00:02:02]} 35. Rd1+ {[%clk 00:00:39]} {[%emt 00:00:27]} Ke7 {[%clk
00:01:59]} {[%emt 00:01:33]} 36. Bc4 {[%clk 00:00:35]} {[%emt 00:00:34]} f5
{[%clk 00:00:34]} {[%emt 00:01:56]} 37. Rd5 {[%clk 00:00:33]} {[%emt 00:00:31]}
Ne4 {[%clk 00:00:39]} {[%emt 00:00:26]} 38. Be2 {[%clk 00:00:40]} {[%emt
00:00:22]} Rxe2 {[%clk 00:00:36]} {[%emt 00:00:33]} 0-1